[Event "Titled Tuesday Blitz January 31 Late 2023"]
[White "OKEKE, Isaac Chukwudalu"]
[Black "Aldokhin, Ivan"]
[WhiteFideId "8508526"]
[BlackFideId "24115720"]
[WhiteElo "2155"]
[BlackElo "2413"]
[Result "1-0"]
[Round "03"]
[TimeControl "180+2"]
[Date "2023.01.31"]
[WhiteClock "0:00:15"]
[BlackClock "0:00:02"]

1. e4 {[%clk 0:03:00]}  c5 {[%clk 0:03:00]} 2. Nf3 {[%clk 0:03:00]}  e6 {[%clk 0:03:01]} 3. d4 {[%clk 0:03:00]}  cxd4 {[%clk 0:03:01]} 4. Nxd4 {[%clk 0:03:01]}  a6 {[%clk 0:03:02]} 5. c4 {[%clk 0:03:00]}  Qc7 {[%clk 0:03:02]} 6. Be2 {[%clk 0:03:00]}  Nf6 {[%clk 0:03:03]} 7. Nc3 {[%clk 0:02:58]}  Bb4 {[%clk 0:02:53]} 8. Qd3 {[%clk 0:02:58]}  d5 {[%clk 0:02:40]} 9. exd5 {[%clk 0:02:50]}  exd5 {[%clk 0:02:38]} 10. Qe3+ {[%clk 0:02:32]}  Be7 {[%clk 0:01:57]} 11. cxd5 {[%clk 0:02:28]}  O-O {[%clk 0:01:56]} 12. O-O {[%clk 0:02:27]}  Bd6 {[%clk 0:01:52]} 13. h3 {[%clk 0:02:14]}  Re8 {[%clk 0:01:50]} 14. Qd3 {[%clk 0:02:12]}  Nbd7 {[%clk 0:01:50]} 15. Be3 {[%clk 0:01:46]}  Ne5 {[%clk 0:01:36]} 16. Qd2 {[%clk 0:01:38]}  Nc4 {[%clk 0:01:27]} 17. Bxc4 {[%clk 0:01:37]}  Qxc4 {[%clk 0:01:27]} 18. Nf3 {[%clk 0:01:33]}  Ne4 {[%clk 0:01:16]} 19. Nxe4 {[%clk 0:01:32]}  Qxe4 {[%clk 0:01:17]} 20. Qd4 {[%clk 0:01:15]}  Qg6 {[%clk 0:01:04]} 21. Qh4 {[%clk 0:01:09]}  h6 {[%clk 0:00:50]} 22. Rfe1 {[%clk 0:00:49]}  Re4 {[%clk 0:00:49]} 23. Qd8+ {[%clk 0:00:48]}  Kh7 {[%clk 0:00:48]} 24. Nh4 {[%clk 0:00:42]}  Qh5 {[%clk 0:00:39]} 25. Bc5 {[%clk 0:00:25]}  Rxe1+ {[%clk 0:00:29]} 26. Rxe1 {[%clk 0:00:25]}  Bxc5 {[%clk 0:00:29]} 27. Re8 {[%clk 0:00:23]}  g5 {[%clk 0:00:07]} 28. Qf6 {[%clk 0:00:16]}  Bxh3 {[%clk 0:00:02]} 29. Qh8# {[%clk 0:00:15]} 1-0


[Site "https://www.chess.com"]

[Event "Titled Tuesday Blitz January 31 Late 2023"]
[White "Janaszak, Dawid"]
[Black "Pino Perez, Lazaro"]
[WhiteFideId "1119206"]
[BlackFideId "3517055"]
[WhiteElo "2316"]
[BlackElo "2142"]
[Result "1-0"]
[Round "03"]
[TimeControl "180+2"]
[Date "2023.01.31"]
[WhiteClock "0:00:05"]
[BlackClock "0:00:03"]

1. e4 {[%clk 0:03:00]}  c5 {[%clk 0:02:59]} 2. Nc3 {[%clk 0:03:00]}  g6 {[%clk 0:02:58]} 3. Bc4 {[%clk 0:02:59]}  Bg7 {[%clk 0:02:57]} 4. h4 {[%clk 0:02:59]}  h5 {[%clk 0:02:56]} 5. Qf3 {[%clk 0:02:58]}  e6 {[%clk 0:02:55]} 6. d4 {[%clk 0:02:58]}  cxd4 {[%clk 0:02:54]} 7. Nb5 {[%clk 0:02:57]}  d6 {[%clk 0:02:54]} 8. Bf4 {[%clk 0:02:56]}  Be5 {[%clk 0:02:36]} 9. Bxe5 {[%clk 0:02:55]}  dxe5 {[%clk 0:02:37]} 10. Qa3 {[%clk 0:02:55]}  Ne7 {[%clk 0:02:36]} 11. Nd6+ {[%clk 0:02:55]}  Kf8 {[%clk 0:02:35]} 12. Nf3 {[%clk 0:02:47]}  f6 {[%clk 0:02:21]} 13. O-O-O {[%clk 0:02:37]}  Nbc6 {[%clk 0:02:15]} 14. Ng5 {[%clk 0:02:19]}  fxg5 {[%clk 0:01:18]} 15. Qf3+ {[%clk 0:02:15]}  Nf5 {[%clk 0:01:18]} 16. exf5 {[%clk 0:02:12]}  gxf5 {[%clk 0:01:19]} 17. Nxc8 {[%clk 0:02:08]}  Qxc8 {[%clk 0:01:18]} 18. hxg5 {[%clk 0:02:05]}  Kg7 {[%clk 0:01:07]} 19. Rxh5 {[%clk 0:02:02]}  Rxh5 {[%clk 0:01:08]} 20. Qxh5 {[%clk 0:02:02]}  Qh8 {[%clk 0:01:09]} 21. Qe2 {[%clk 0:01:50]}  Re8 {[%clk 0:00:56]} 22. g3 {[%clk 0:01:45]}  Qh3 {[%clk 0:00:53]} 23. Bb3 {[%clk 0:01:35]}  Qg4 {[%clk 0:00:49]} 24. Qb5 {[%clk 0:01:34]}  Re7 {[%clk 0:00:47]} 25. Qc5 {[%clk 0:01:25]}  Qxg5+ {[%clk 0:00:47]} 26. f4 {[%clk 0:01:23]}  Qxg3 {[%clk 0:00:41]} 27. fxe5 {[%clk 0:01:21]}  Qxe5 {[%clk 0:00:42]} 28. Qc4 {[%clk 0:01:16]}  Kf6 {[%clk 0:00:41]} 29. a3 {[%clk 0:01:11]}  Rg7 {[%clk 0:00:38]} 30. Qf1 {[%clk 0:01:06]}  Na5 {[%clk 0:00:36]} 31. Ba2 {[%clk 0:01:04]}  Rg4 {[%clk 0:00:29]} 32. Qh1 {[%clk 0:01:01]}  Qe3+ {[%clk 0:00:20]} 33. Kb1 {[%clk 0:01:00]}  Qg5 {[%clk 0:00:21]} 34. Re1 {[%clk 0:00:55]}  Nc6 {[%clk 0:00:20]} 35. Rxe6+ {[%clk 0:00:53]}  Kg7 {[%clk 0:00:18]} 36. Re1 {[%clk 0:00:50]}  d3 {[%clk 0:00:16]} 37. cxd3 {[%clk 0:00:48]}  Rg2 {[%clk 0:00:16]} 38. Bd5 {[%clk 0:00:44]}  Rg3 {[%clk 0:00:09]} 39. Bxc6 {[%clk 0:00:40]}  bxc6 {[%clk 0:00:10]} 40. Qxc6 {[%clk 0:00:38]}  Rg1 {[%clk 0:00:09]} 41. Qb7+ {[%clk 0:00:29]}  Kh6 {[%clk 0:00:06]} 42. Rxg1 {[%clk 0:00:20]}  Qxg1+ {[%clk 0:00:06]} 43. Ka2 {[%clk 0:00:20]}  Qd4 {[%clk 0:00:06]} 44. Qf3 {[%clk 0:00:18]}  Kg5 {[%clk 0:00:05]} 45. Kb3 {[%clk 0:00:16]}  f4 {[%clk 0:00:05]} 46. Kc2 {[%clk 0:00:16]}  Qc5+ {[%clk 0:00:04]} 47. Kd2 {[%clk 0:00:15]}  Qa5+ {[%clk 0:00:03]} 48. Ke2 {[%clk 0:00:14]}  Qe5+ {[%clk 0:00:03]} 49. Kf1 {[%clk 0:00:14]}  Qxb2 {[%clk 0:00:03]} 50. Qd5+ {[%clk 0:00:14]}  Kg4 {[%clk 0:00:02]} 51. Qe6+ {[%clk 0:00:07]}  Kf3 {[%clk 0:00:02]} 52. Qe4+ {[%clk 0:00:06]}  Kg3 {[%clk 0:00:03]} 53. Qe1+ {[%clk 0:00:05]}  Kg4 {[%clk 0:00:03]} 54. Qe2+ {[%clk 0:00:05]}  Kg3 {[%clk 0:00:03]} 55. Qxb2 {[%clk 0:00:05]} 1-0


[Site "https://www.chess.com"]

[Event "Titled Tuesday Blitz January 31 Late 2023"]
[White "Denishev, Marat"]
[Black "Fernandez Siles, Luis"]
[WhiteFideId "24131563"]
[BlackFideId "2209420"]
[WhiteElo "2255"]
[BlackElo "2218"]
[Result "1-0"]
[Round "03"]
[TimeControl "180+2"]
[Date "2023.01.31"]
[WhiteClock "0:01:46"]
[BlackClock "0:00:59"]

1. d4 {[%clk 0:03:00]}  Nf6 {[%clk 0:02:59]} 2. c4 {[%clk 0:03:00]}  g6 {[%clk 0:02:59]} 3. Nf3 {[%clk 0:03:01]}  Bg7 {[%clk 0:02:59]} 4. g3 {[%clk 0:03:02]}  O-O {[%clk 0:02:59]} 5. Bg2 {[%clk 0:03:02]}  d6 {[%clk 0:02:58]} 6. O-O {[%clk 0:03:03]}  c6 {[%clk 0:02:59]} 7. Nc3 {[%clk 0:03:03]}  Qa5 {[%clk 0:02:59]} 8. e4 {[%clk 0:03:00]}  e5 {[%clk 0:03:00]} 9. Be3 {[%clk 0:02:58]}  Bg4 {[%clk 0:02:57]} 10. d5 {[%clk 0:02:56]}  cxd5 {[%clk 0:02:53]} 11. cxd5 {[%clk 0:02:55]}  Rc8 {[%clk 0:02:46]} 12. h3 {[%clk 0:02:53]}  Bxf3 {[%clk 0:02:43]} 13. Bxf3 {[%clk 0:02:52]}  b5 {[%clk 0:02:39]} 14. Qd3 {[%clk 0:02:44]}  a6 {[%clk 0:02:32]} 15. a3 {[%clk 0:02:39]}  Nbd7 {[%clk 0:02:28]} 16. Rfc1 {[%clk 0:02:33]}  b4 {[%clk 0:02:04]} 17. axb4 {[%clk 0:02:25]}  Qxb4 {[%clk 0:02:05]} 18. Rcb1 {[%clk 0:02:20]}  a5 {[%clk 0:01:47]} 19. Qb5 {[%clk 0:02:01]}  Rcb8 {[%clk 0:01:38]} 20. Qxb4 {[%clk 0:01:59]}  axb4 {[%clk 0:01:38]} 21. Rxa8 {[%clk 0:01:58]}  Rxa8 {[%clk 0:01:39]} 22. Nb5 {[%clk 0:01:58]}  Ne8 {[%clk 0:01:30]} 23. Rc1 {[%clk 0:01:53]}  Rb8 {[%clk 0:01:23]} 24. Na7 {[%clk 0:01:53]}  Bf6 {[%clk 0:01:19]} 25. Nc6 {[%clk 0:01:53]}  Ra8 {[%clk 0:01:16]} 26. Nxb4 {[%clk 0:01:53]}  Rb8 {[%clk 0:01:14]} 27. Nd3 {[%clk 0:01:53]}  Rb3 {[%clk 0:01:13]} 28. Be2 {[%clk 0:01:53]}  Kf8 {[%clk 0:01:04]} 29. Rc3 {[%clk 0:01:53]}  Rb8 {[%clk 0:01:00]} 30. b4 {[%clk 0:01:51]}  Bd8 {[%clk 0:01:00]} 31. Rb3 {[%clk 0:01:51]}  Bb6 {[%clk 0:01:00]} 32. Bh6+ {[%clk 0:01:47]}  Ke7 {[%clk 0:00:59]} 33. Kg2 {[%clk 0:01:47]}  Nc7 {[%clk 0:00:59]} 34. Nb2 {[%clk 0:01:46]}  Nb5 {[%clk 0:00:59]} 35. Bxb5 {[%clk 0:01:46]} 1-0


[Site "https://www.chess.com"]

[Event "Titled Tuesday Blitz January 31 Late 2023"]
[White "Wilson, Elvin"]
[Black "Golding, Alex"]
[WhiteFideId "2014874"]
[BlackFideId "427241"]
[WhiteElo "2183"]
[BlackElo "2318"]
[Result "0-1"]
[Round "03"]
[TimeControl "180+2"]
[Date "2023.01.31"]
[WhiteClock "0:00:01"]
[BlackClock "0:01:09"]

1. c4 {[%clk 0:02:56]}  e5 {[%clk 0:02:57]} 2. Nc3 {[%clk 0:02:52]}  Nc6 {[%clk 0:02:57]} 3. g3 {[%clk 0:02:52]}  g6 {[%clk 0:02:56]} 4. Bg2 {[%clk 0:02:52]}  Bg7 {[%clk 0:02:57]} 5. e4 {[%clk 0:02:52]}  Nge7 {[%clk 0:02:57]} 6. Nge2 {[%clk 0:02:52]}  O-O {[%clk 0:02:58]} 7. O-O {[%clk 0:02:52]}  Nd4 {[%clk 0:02:57]} 8. Nxd4 {[%clk 0:02:50]}  exd4 {[%clk 0:02:57]} 9. Ne2 {[%clk 0:02:51]}  d6 {[%clk 0:02:57]} 10. d3 {[%clk 0:02:51]}  Rb8 {[%clk 0:02:57]} 11. b4 {[%clk 0:02:50]}  a6 {[%clk 0:02:56]} 12. Bb2 {[%clk 0:02:49]}  c5 {[%clk 0:02:55]} 13. a3 {[%clk 0:02:26]}  Nc6 {[%clk 0:02:53]} 14. Rb1 {[%clk 0:02:23]}  Qe7 {[%clk 0:02:52]} 15. Nf4 {[%clk 0:02:20]}  Be6 {[%clk 0:02:47]} 16. Re1 {[%clk 0:02:16]}  b5 {[%clk 0:02:40]} 17. Nd5 {[%clk 0:02:15]}  Qd7 {[%clk 0:02:30]} 18. cxb5 {[%clk 0:01:37]}  axb5 {[%clk 0:02:30]} 19. bxc5 {[%clk 0:01:20]}  dxc5 {[%clk 0:02:30]} 20. Rc1 {[%clk 0:01:14]}  Qd6 {[%clk 0:02:24]} 21. Qc2 {[%clk 0:01:04]}  c4 {[%clk 0:02:15]} 22. dxc4 {[%clk 0:01:03]}  bxc4 {[%clk 0:02:15]} 23. Qxc4 {[%clk 0:01:03]}  Rxb2 {[%clk 0:02:15]} 24. Qxc6 {[%clk 0:01:03]}  Qxa3 {[%clk 0:02:15]} 25. e5 {[%clk 0:00:42]}  d3 {[%clk 0:02:05]} 26. Ra1 {[%clk 0:00:30]}  Qb3 {[%clk 0:02:00]} 27. Nf6+ {[%clk 0:00:26]}  Bxf6 {[%clk 0:01:55]} 28. exf6 {[%clk 0:00:26]}  d2 {[%clk 0:01:49]} 29. Red1 {[%clk 0:00:26]}  Bg4 {[%clk 0:01:43]} 30. f3 {[%clk 0:00:16]}  Qe3+ {[%clk 0:01:27]} 31. Kh1 {[%clk 0:00:15]}  Bf5 {[%clk 0:01:26]} 32. Qd6 {[%clk 0:00:11]}  h5 {[%clk 0:01:18]} 33. Qxf8+ {[%clk 0:00:05]}  Kxf8 {[%clk 0:01:13]} 34. Ra8+ {[%clk 0:00:04]}  Qe8 {[%clk 0:01:13]} 35. Rxe8+ {[%clk 0:00:04]}  Kxe8 {[%clk 0:01:14]} 36. Kg1 {[%clk 0:00:04]}  Bd7 {[%clk 0:01:09]} 37. Kf2 {[%clk 0:00:03]}  Ba4 {[%clk 0:01:10]} 38. Ke2 {[%clk 0:00:03]}  Bxd1+ {[%clk 0:01:10]} 39. Kxd1 {[%clk 0:00:04]}  Kd7 {[%clk 0:01:10]} 40. g4 {[%clk 0:00:04]}  h4 {[%clk 0:01:09]} 41. g5 {[%clk 0:00:04]}  Ke6 {[%clk 0:01:09]} 42. Bh3+ {[%clk 0:00:03]}  Ke5 {[%clk 0:01:09]} 43. Bf1 {[%clk 0:00:01]}  Kf4 {[%clk 0:01:09]} 0-1


[Site "https://www.chess.com"]

[Event "Titled Tuesday Blitz January 31 Late 2023"]
[White "Real_taiatai"]
[Black "Lizak, Peter"]
[BlackFideId "731595"]
[WhiteElo "2316"]
[BlackElo "2411"]
[Result "0-1"]
[Round "03"]
[TimeControl "180+2"]
[Date "2023.01.31"]
[WhiteClock "0:00:25"]
[BlackClock "0:00:14"]

1. d4 {[%clk 0:03:00]}  Nf6 {[%clk 0:02:58]} 2. c4 {[%clk 0:03:01]}  c5 {[%clk 0:02:55]} 3. d5 {[%clk 0:03:00]}  g6 {[%clk 0:02:55]} 4. g3 {[%clk 0:02:55]}  d6 {[%clk 0:02:55]} 5. Bg2 {[%clk 0:02:56]}  Bg7 {[%clk 0:02:56]} 6. Nc3 {[%clk 0:02:56]}  O-O {[%clk 0:02:56]} 7. e4 {[%clk 0:02:56]}  e6 {[%clk 0:02:56]} 8. Nf3 {[%clk 0:02:57]}  exd5 {[%clk 0:02:57]} 9. cxd5 {[%clk 0:02:57]}  Re8 {[%clk 0:02:57]} 10. Nd2 {[%clk 0:02:51]}  b5 {[%clk 0:02:57]} 11. Nxb5 {[%clk 0:02:48]}  Ba6 {[%clk 0:02:48]} 12. a4 {[%clk 0:02:42]}  Nxe4 {[%clk 0:02:05]} 13. Nxe4 {[%clk 0:02:06]}  Bxb5 {[%clk 0:02:04]} 14. axb5 {[%clk 0:02:04]}  f5 {[%clk 0:02:04]} 15. O-O {[%clk 0:01:59]}  fxe4 {[%clk 0:02:04]} 16. Ra4 {[%clk 0:01:57]}  Nd7 {[%clk 0:02:00]} 17. Bf4 {[%clk 0:01:44]}  Ne5 {[%clk 0:01:55]} 18. Rxe4 {[%clk 0:01:40]}  Qb6 {[%clk 0:01:55]} 19. Qa4 {[%clk 0:01:35]}  Rab8 {[%clk 0:01:32]} 20. Rfe1 {[%clk 0:01:32]}  Qxb5 {[%clk 0:01:28]} 21. Qxa7 {[%clk 0:01:32]}  Qxb2 {[%clk 0:01:23]} 22. Qc7 {[%clk 0:01:21]}  Qb6 {[%clk 0:01:22]} 23. Qxb6 {[%clk 0:01:11]}  Rxb6 {[%clk 0:01:22]} 24. Bh3 {[%clk 0:00:56]}  Nf3+ {[%clk 0:01:11]} 25. Kf1 {[%clk 0:00:54]}  Rxe4 {[%clk 0:01:04]} 26. Rxe4 {[%clk 0:00:53]}  Rb1+ {[%clk 0:01:03]} 27. Kg2 {[%clk 0:00:50]}  Ne1+ {[%clk 0:00:59]} 28. Rxe1 {[%clk 0:00:25]}  Rxe1 {[%clk 0:00:58]} 29. Bxd6 {[%clk 0:00:26]}  c4 {[%clk 0:00:53]} 30. Bb4 {[%clk 0:00:24]}  Rd1 {[%clk 0:00:44]} 31. Be6+ {[%clk 0:00:22]}  Kh8 {[%clk 0:00:43]} 32. d6 {[%clk 0:00:22]}  c3 {[%clk 0:00:43]} 33. Bb3 {[%clk 0:00:20]}  Rd3 {[%clk 0:00:34]} 34. Ba4 {[%clk 0:00:20]}  Rd5 {[%clk 0:00:14]} 35. d7 {[%clk 0:00:20]}  c2 {[%clk 0:00:12]} 36. Ba3 {[%clk 0:00:20]}  Bf6 {[%clk 0:00:08]} 37. Kf3 {[%clk 0:00:19]}  Rd3+ {[%clk 0:00:06]} 38. Ke2 {[%clk 0:00:19]}  Rxa3 {[%clk 0:00:07]} 39. Bxc2 {[%clk 0:00:19]}  Ra2 {[%clk 0:00:07]} 40. Kd3 {[%clk 0:00:19]}  Bd8 {[%clk 0:00:07]} 41. f4 {[%clk 0:00:19]}  Kg7 {[%clk 0:00:08]} 42. Bb3 {[%clk 0:00:18]}  Ra7 {[%clk 0:00:08]} 43. Be6 {[%clk 0:00:18]}  Kf6 {[%clk 0:00:08]} 44. Bg4 {[%clk 0:00:18]}  Ra2 {[%clk 0:00:09]} 45. h4 {[%clk 0:00:18]}  Rg2 {[%clk 0:00:09]} 46. Ke4 {[%clk 0:00:18]}  Rxg3 {[%clk 0:00:09]} 47. Bf3 {[%clk 0:00:18]}  Rxf3 {[%clk 0:00:09]} 48. Kxf3 {[%clk 0:00:18]}  Ke6 {[%clk 0:00:09]} 49. Kg4 {[%clk 0:00:19]}  h5+ {[%clk 0:00:10]} 50. Kf3 {[%clk 0:00:18]}  Kxd7 {[%clk 0:00:10]} 51. Ke4 {[%clk 0:00:18]}  Ke6 {[%clk 0:00:10]} 52. f5+ {[%clk 0:00:17]}  gxf5+ {[%clk 0:00:10]} 53. Kf4 {[%clk 0:00:18]}  Bxh4 {[%clk 0:00:10]} 54. Kf3 {[%clk 0:00:19]}  Bf6 {[%clk 0:00:11]} 55. Kf4 {[%clk 0:00:20]}  Be5+ {[%clk 0:00:11]} 56. Kf3 {[%clk 0:00:20]}  Kf6 {[%clk 0:00:11]} 57. Kg2 {[%clk 0:00:21]}  Kg5 {[%clk 0:00:12]} 58. Kh3 {[%clk 0:00:22]}  f4 {[%clk 0:00:12]} 59. Kg2 {[%clk 0:00:23]}  Kg4 {[%clk 0:00:12]} 60. Kf2 {[%clk 0:00:23]}  f3 {[%clk 0:00:12]} 61. Kg1 {[%clk 0:00:24]}  Kg3 {[%clk 0:00:13]} 62. Kf1 {[%clk 0:00:25]}  f2 {[%clk 0:00:13]} 63. Ke2 {[%clk 0:00:25]}  Kg2 {[%clk 0:00:14]} 0-1


[Site "https://www.chess.com"]

[Event "Titled Tuesday Blitz January 31 Late 2023"]
[White "Gardezi, Arsal"]
[Black "Pasti, Aron"]
[WhiteFideId "30949521"]
[BlackFideId "785857"]
[WhiteElo "2093"]
[BlackElo "2361"]
[Result "0-1"]
[Round "03"]
[TimeControl "180+2"]
[Date "2023.01.31"]
[WhiteClock "0:00:12"]
[BlackClock "0:00:36"]

1. e4 {[%clk 0:02:57]}  c5 {[%clk 0:02:59]} 2. Nf3 {[%clk 0:02:57]}  e6 {[%clk 0:02:56]} 3. c3 {[%clk 0:02:57]}  d5 {[%clk 0:02:52]} 4. exd5 {[%clk 0:02:55]}  Qxd5 {[%clk 0:02:53]} 5. d4 {[%clk 0:02:55]}  Nc6 {[%clk 0:02:54]} 6. Be3 {[%clk 0:02:38]}  cxd4 {[%clk 0:02:52]} 7. cxd4 {[%clk 0:02:38]}  Bb4+ {[%clk 0:02:52]} 8. Nc3 {[%clk 0:02:38]}  Nf6 {[%clk 0:02:52]} 9. Bd3 {[%clk 0:02:35]}  Qa5 {[%clk 0:02:49]} 10. O-O {[%clk 0:02:09]}  O-O {[%clk 0:02:47]} 11. Rc1 {[%clk 0:01:57]}  b6 {[%clk 0:02:37]} 12. a3 {[%clk 0:01:56]}  Bxc3 {[%clk 0:02:34]} 13. Rxc3 {[%clk 0:01:57]}  Bb7 {[%clk 0:02:35]} 14. Ng5 {[%clk 0:01:15]}  h6 {[%clk 0:01:59]} 15. Ne4 {[%clk 0:01:15]}  Nd5 {[%clk 0:01:55]} 16. Rb3 {[%clk 0:01:12]}  Nxe3 {[%clk 0:01:10]} 17. fxe3 {[%clk 0:01:12]}  Qd5 {[%clk 0:01:06]} 18. Rb5 {[%clk 0:01:03]}  Qd7 {[%clk 0:01:00]} 19. Qg4 {[%clk 0:00:59]}  f5 {[%clk 0:00:59]} 20. Qg6 {[%clk 0:00:48]}  Ne7 {[%clk 0:00:52]} 21. Qg3 {[%clk 0:00:19]}  fxe4 {[%clk 0:00:51]} 22. Rxf8+ {[%clk 0:00:16]}  Rxf8 {[%clk 0:00:50]} 23. Bc4 {[%clk 0:00:17]}  Ba6 {[%clk 0:00:48]} 24. Qe5 {[%clk 0:00:14]}  Rf6 {[%clk 0:00:39]} 25. d5 {[%clk 0:00:11]}  Bxb5 {[%clk 0:00:36]} 26. dxe6 {[%clk 0:00:12]}  Qd1+ {[%clk 0:00:36]} 0-1


[Site "https://www.chess.com"]

[Event "Titled Tuesday Blitz January 31 Late 2023"]
[White "Bayo Milagro, Alvaro"]
[Black "Bulgurlu, Okan"]
[WhiteFideId "22275240"]
[BlackFideId "6352316"]
[WhiteElo "2287"]
[BlackElo "1908"]
[Result "1-0"]
[Round "03"]
[TimeControl "180+2"]
[Date "2023.01.31"]
[WhiteClock "0:00:07"]
[BlackClock "0:00:06"]

1. Nf3 {[%clk 0:03:00]}  d5 {[%clk 0:02:51]} 2. c4 {[%clk 0:02:59]}  c6 {[%clk 0:02:51]} 3. e3 {[%clk 0:02:57]}  Nf6 {[%clk 0:02:51]} 4. Nc3 {[%clk 0:02:58]}  e6 {[%clk 0:02:50]} 5. b3 {[%clk 0:02:58]}  Be7 {[%clk 0:02:50]} 6. Bb2 {[%clk 0:02:58]}  O-O {[%clk 0:02:50]} 7. Qc2 {[%clk 0:02:58]}  Na6 {[%clk 0:02:46]} 8. Be2 {[%clk 0:02:58]}  Nb4 {[%clk 0:02:35]} 9. Qb1 {[%clk 0:02:58]}  c5 {[%clk 0:02:25]} 10. a3 {[%clk 0:02:57]}  Nc6 {[%clk 0:02:25]} 11. cxd5 {[%clk 0:02:57]}  exd5 {[%clk 0:02:21]} 12. d4 {[%clk 0:02:40]}  Na5 {[%clk 0:02:05]} 13. Qd1 {[%clk 0:02:34]}  Qb6 {[%clk 0:01:55]} 14. Nb5 {[%clk 0:01:57]}  a6 {[%clk 0:01:47]} 15. dxc5 {[%clk 0:01:57]}  Bxc5 {[%clk 0:01:41]} 16. Nbd4 {[%clk 0:01:56]}  Nc6 {[%clk 0:01:35]} 17. O-O {[%clk 0:01:53]}  Bg4 {[%clk 0:01:23]} 18. Nxc6 {[%clk 0:01:47]}  bxc6 {[%clk 0:01:18]} 19. Bxf6 {[%clk 0:01:47]}  gxf6 {[%clk 0:01:18]} 20. b4 {[%clk 0:01:45]}  Be7 {[%clk 0:01:13]} 21. Nd4 {[%clk 0:01:44]}  Be6 {[%clk 0:01:01]} 22. Bd3 {[%clk 0:01:42]}  f5 {[%clk 0:00:31]} 23. Nxf5 {[%clk 0:01:05]}  Bxf5 {[%clk 0:00:28]} 24. Bxf5 {[%clk 0:01:06]}  Rfe8 {[%clk 0:00:22]} 25. Qh5 {[%clk 0:00:55]}  Bf6 {[%clk 0:00:22]} 26. Rac1 {[%clk 0:00:51]}  a5 {[%clk 0:00:12]} 27. Qxh7+ {[%clk 0:00:42]}  Kf8 {[%clk 0:00:12]} 28. Qh6+ {[%clk 0:00:42]}  Ke7 {[%clk 0:00:12]} 29. Qf4 {[%clk 0:00:38]}  axb4 {[%clk 0:00:10]} 30. axb4 {[%clk 0:00:38]}  Rab8 {[%clk 0:00:10]} 31. e4 {[%clk 0:00:30]}  Qxb4 {[%clk 0:00:09]} 32. Rxc6 {[%clk 0:00:30]}  dxe4 {[%clk 0:00:08]} 33. Rc7+ {[%clk 0:00:28]}  Kf8 {[%clk 0:00:07]} 34. Bg6 {[%clk 0:00:21]}  Re7 {[%clk 0:00:04]} 35. Rxe7 {[%clk 0:00:12]}  Qxe7 {[%clk 0:00:04]} 36. Qxb8+ {[%clk 0:00:12]}  Kg7 {[%clk 0:00:04]} 37. Bh5 {[%clk 0:00:11]}  Be5 {[%clk 0:00:04]} 38. Qb5 {[%clk 0:00:10]}  Qg5 {[%clk 0:00:03]} 39. Qe2 {[%clk 0:00:08]}  Qh4 {[%clk 0:00:02]} 40. g3 {[%clk 0:00:08]}  Qh3 {[%clk 0:00:02]} 41. Qg4+ {[%clk 0:00:06]}  Qxg4 {[%clk 0:00:03]} 42. Bxg4 {[%clk 0:00:07]}  Kf6 {[%clk 0:00:03]} 43. Re1 {[%clk 0:00:07]}  Kg5 {[%clk 0:00:04]} 44. Rxe4 {[%clk 0:00:07]}  f5 {[%clk 0:00:04]} 45. Rxe5 {[%clk 0:00:07]}  Kxg4 {[%clk 0:00:05]} 46. Kg2 {[%clk 0:00:07]}  f4 {[%clk 0:00:06]} 47. f3# {[%clk 0:00:07]} 1-0


[Site "https://www.chess.com"]

[Event "Titled Tuesday Blitz January 31 Late 2023"]
[White "Kohler, Aran"]
[Black "Reprintsev, Alexander"]
[WhiteFideId "1002856"]
[BlackFideId "14100541"]
[WhiteElo "2010"]
[BlackElo "2253"]
[Result "0-1"]
[Round "03"]
[TimeControl "180+2"]
[Date "2023.01.31"]
[WhiteClock "0:00:36"]
[BlackClock "0:01:17"]

1. Nf3 {[%clk 0:03:00]}  d5 {[%clk 0:02:55]} 2. d4 {[%clk 0:03:01]}  Nc6 {[%clk 0:02:55]} 3. Bf4 {[%clk 0:03:01]}  Bg4 {[%clk 0:02:54]} 4. e3 {[%clk 0:02:59]}  e6 {[%clk 0:02:54]} 5. Nbd2 {[%clk 0:02:52]}  Bd6 {[%clk 0:02:54]} 6. Bg3 {[%clk 0:02:47]}  f5 {[%clk 0:02:54]} 7. c3 {[%clk 0:02:42]}  Qf6 {[%clk 0:02:54]} 8. Bxd6 {[%clk 0:02:39]}  cxd6 {[%clk 0:02:53]} 9. Bb5 {[%clk 0:02:32]}  Ne7 {[%clk 0:02:53]} 10. h3 {[%clk 0:02:28]}  Bh5 {[%clk 0:02:52]} 11. a4 {[%clk 0:02:12]}  O-O {[%clk 0:02:51]} 12. Be2 {[%clk 0:02:09]}  f4 {[%clk 0:02:47]} 13. e4 {[%clk 0:02:08]}  Kh8 {[%clk 0:02:24]} 14. O-O {[%clk 0:02:02]}  e5 {[%clk 0:02:22]} 15. dxe5 {[%clk 0:01:59]}  dxe5 {[%clk 0:02:22]} 16. exd5 {[%clk 0:01:58]}  Nxd5 {[%clk 0:02:22]} 17. Ne4 {[%clk 0:01:58]}  Qd8 {[%clk 0:02:11]} 18. c4 {[%clk 0:01:51]}  Ndb4 {[%clk 0:02:08]} 19. Nd6 {[%clk 0:01:50]}  Qe7 {[%clk 0:02:00]} 20. c5 {[%clk 0:01:50]}  e4 {[%clk 0:01:57]} 21. Ne1 {[%clk 0:01:47]}  f3 {[%clk 0:01:57]} 22. gxf3 {[%clk 0:01:39]}  Qg5+ {[%clk 0:01:53]} 23. Kh1 {[%clk 0:01:36]}  Qxc5 {[%clk 0:01:52]} 24. Nxe4 {[%clk 0:01:33]}  Qe5 {[%clk 0:01:43]} 25. Ng3 {[%clk 0:01:30]}  Rad8 {[%clk 0:01:37]} 26. f4 {[%clk 0:01:04]}  Rxd1 {[%clk 0:01:32]} 27. fxe5 {[%clk 0:01:00]}  Bxe2 {[%clk 0:01:23]} 28. Rxd1 {[%clk 0:00:53]}  Bxd1 {[%clk 0:01:23]} 29. f4 {[%clk 0:00:53]}  Bxa4 {[%clk 0:01:21]} 30. Nf3 {[%clk 0:00:49]}  Rxf4 {[%clk 0:01:19]} 31. e6 {[%clk 0:00:40]}  Ne7 {[%clk 0:01:19]} 32. Nh5 {[%clk 0:00:36]}  Rxf3 {[%clk 0:01:17]} 0-1


[Site "https://www.chess.com"]

[Event "Titled Tuesday Blitz January 31 Late 2023"]
[White "Olsson, William"]
[Black "O`Gorman, Tom"]
[WhiteFideId "1741721"]
[BlackFideId "2508249"]
[WhiteElo "2355"]
[BlackElo "2355"]
[Result "0-1"]
[Round "03"]
[TimeControl "180+2"]
[Date "2023.01.31"]
[WhiteClock "0:01:25"]
[BlackClock "0:01:45"]

1. c4 {[%clk 0:03:00]}  Nf6 {[%clk 0:02:57]} 2. g3 {[%clk 0:03:00]}  g6 {[%clk 0:02:57]} 3. Bg2 {[%clk 0:03:00]}  Bg7 {[%clk 0:02:57]} 4. Nc3 {[%clk 0:02:59]}  O-O {[%clk 0:02:58]} 5. Nf3 {[%clk 0:03:00]}  d6 {[%clk 0:02:58]} 6. O-O {[%clk 0:02:59]}  Nc6 {[%clk 0:02:59]} 7. Rb1 {[%clk 0:02:59]}  a5 {[%clk 0:02:54]} 8. a3 {[%clk 0:02:59]}  e5 {[%clk 0:02:54]} 9. b4 {[%clk 0:02:57]}  axb4 {[%clk 0:02:55]} 10. axb4 {[%clk 0:02:57]}  Re8 {[%clk 0:02:53]} 11. d3 {[%clk 0:02:53]}  e4 {[%clk 0:02:50]} 12. Ne1 {[%clk 0:02:45]}  Bf5 {[%clk 0:02:46]} 13. b5 {[%clk 0:02:40]}  Nd4 {[%clk 0:02:35]} 14. e3 {[%clk 0:02:25]}  Bg4 {[%clk 0:02:35]} 15. Qd2 {[%clk 0:02:09]}  Nf3+ {[%clk 0:02:34]} 16. Nxf3 {[%clk 0:02:09]}  exf3 {[%clk 0:02:35]} 17. Bh1 {[%clk 0:02:08]}  Qd7 {[%clk 0:02:29]} 18. Bb2 {[%clk 0:01:59]}  Qf5 {[%clk 0:02:24]} 19. e4 {[%clk 0:01:46]}  Qh5 {[%clk 0:02:23]} 20. Qf4 {[%clk 0:01:37]}  Re6 {[%clk 0:01:52]} 21. Nd1 {[%clk 0:01:37]}  Bh6 {[%clk 0:01:46]} 22. Bxf6 {[%clk 0:01:25]}  Bxf4 {[%clk 0:01:45]} 0-1


[Site "https://www.chess.com"]